fUSD/lending_fUSD_20260508
["ID","MTS","AMOUNT","RATE_DAILY","PERIOD"]
[421851175,1778225443000,-198.55854372,0.00015,2]
[421851177,1778225443000,-1206.77659063,0.00015,2]
[421851156,1778225443000,-500.0,0.00014999,2]
[421851159,1778225443000,-500.0,0.00014999,2]
[421851125,1778225443000,-500.0,0.00014999,2]
[421851158,1778225443000,-500.0,0.00014999,2]
[421851152,1778225443000,-500.0,0.00014999,2]
[421851129,1778225443000,-500.0,0.00014999,2]
[421851126,1778225443000,-500.0,0.00014999,2]
[421851133,1778225443000,-500.0,0.00014999,2]
[421851128,1778225443000,-500.0,0.00014999,2]
[421851134,1778225443000,-500.0,0.00014999,2]
[421851139,1778225443000,-500.0,0.00014999,2]
[421851146,1778225443000,-500.0,0.00014999,2]
[421851143,1778225443000,-500.0,0.00014999,2]
[421851141,1778225443000,-500.0,0.00014999,2]
[421851135,1778225443000,-500.0,0.00014999,2]
[421851142,1778225443000,-500.0,0.00014999,2]
[421851144,1778225443000,-500.0,0.00014999,2]
[421851140,1778225443000,-500.0,0.00014999,2]
[421851145,1778225443000,-500.0,0.00014999,2]
[421851151,1778225443000,-500.0,0.00014999,2]
[421851147,1778225443000,-500.0,0.00014999,2]
[421851148,1778225443000,-500.0,0.00014999,2]
[421851176,1778225443000,-2088.50494985,0.00015,2]
[421851150,1778225443000,-500.0,0.00014999,2]
[421851153,1778225443000,-500.0,0.00014999,2]
[421851138,1778225443000,-500.0,0.00014999,2]
[421851223,1778225444000,-150.0,0.00015503,2]
[421851210,1778225444000,-2500.0,0.00015164,2]
[421851205,1778225444000,-151.4597492,0.00015068,2]
[421851203,1778225444000,-788.77,0.00015068,2]
[421851206,1778225444000,-150.0,0.0001509,2]
[421851204,1778225444000,-474.56,0.00015068,2]
[421851201,1778225444000,-207.99170503,0.00015065,2]
[421851219,1778225444000,-308.0,0.000154,2]
[421851207,1778225444000,-200.0,0.00015099,2]
[421851215,1778225444000,-2000.0,0.00015286,2]
[421851224,1778225444000,-1068.05268496,0.00015521,2]
[421851220,1778225444000,-593.11195961,0.00015411,2]
[421851217,1778225444000,-781.13,0.00015342,2]
[421851213,1778225444000,-2067.38361914,0.00015249,2]
[421851222,1778225444000,-3292.0,0.00015466,2]
[421851218,1778225444000,-1000.0,0.000154,2]
[421851216,1778225444000,-208.65,0.00015336,2]
[421851214,1778225444000,-736.0,0.00015273,2]
[421851221,1778225444000,-593.11195961,0.00015431,2]
[421851234,1778225444000,-3000.0,0.00015712,2]
[421851208,1778225444000,-201.93286099,0.00015099,2]
[421851212,1778225444000,-168.88,0.00015217,2]
[421851209,1778225444000,-150.0,0.00015146,2]
[421851196,1778225444000,-151.0,0.00015,2]
[421851202,1778225444000,-160.0,0.00015065,2]
[421851231,1778225444000,-209.40437684,0.00015647,2]
[421851188,1778225444000,-151.0,0.00015,2]
[421851184,1778225444000,-227.95016857,0.00015,2]
[421851185,1778225444000,-153.589201,0.00015,2]
[421851187,1778225444000,-151.0,0.00015,2]
[421851181,1778225444000,-378.14936366,0.00015,2]
[421851180,1778225444000,-121.85063634,0.00015,2]
[421851186,1778225444000,-151.0,0.00015,2]
[421851182,1778225444000,-34.51063634,0.00015,2]
[421851183,1778225444000,-152.11507395,0.00015,2]
[421851191,1778225444000,-151.0,0.00015,2]
[421851198,1778225444000,-151.0,0.00015,2]
[421851192,1778225444000,-151.0,0.00015,2]
[421851195,1778225444000,-151.0,0.00015,2]
[421851194,1778225444000,-250.24,0.00015,2]
[421851193,1778225444000,-151.0,0.00015,2]
[421851199,1778225444000,-9519.0,0.00015,2]
[421851189,1778225444000,-153.743081,0.00015,2]
[421851197,1778225444000,-151.0,0.00015,2]
[421851190,1778225444000,-151.0,0.00015,2]
[421851200,1778225444000,-214.68143985,0.00015065,2]
[421851211,1778225444000,-168.88,0.00015217,2]
[421851225,1778225444000,-152.0,0.00015565,2]
[421851233,1778225444000,-350.0,0.00015677,2]
[421851229,1778225444000,-500.0,0.00015646,2]
[421851257,1778225444000,-677.51599393,0.0001598,2]
[421851263,1778225444000,-677.51599393,0.00016011,2]
[421851261,1778225444000,-186.65318377,0.00016,2]
[421851256,1778225444000,-677.51599393,0.0001596,2]
[421851260,1778225444000,-300.0,0.00016,2]
[421851258,1778225444000,-677.51599393,0.00015991,2]
[421851259,1778225444000,-677.51599393,0.00015996,2]
[421851265,1778225444000,-677.51599393,0.00016014,2]
[421851267,1778225444000,-400.0,0.00016044,2]
[421851266,1778225444000,-677.51599393,0.0001604,2]
[421851264,1778225444000,-677.51599393,0.00016014,2]
[421851271,1778225444000,-400.0,0.00016044,2]
[421851269,1778225444000,-400.0,0.00016044,2]
[421851275,1778225444000,-400.0,0.00016044,2]
[421851270,1778225444000,-400.0,0.00016044,2]
[421851268,1778225444000,-400.0,0.00016044,2]
[421851274,1778225444000,-400.0,0.00016044,2]
[421851273,1778225444000,-400.0,0.00016044,2]
[421851276,1778225444000,-350.0,0.00016044,2]
[421851278,1778225444000,-677.51599393,0.00016059,2]
[421851232,1778225444000,-593.11195961,0.00015652,2]
[421851277,1778225444000,-677.51599393,0.00016055,2]
[421851272,1778225444000,-400.0,0.00016044,2]
[421851249,1778225444000,-677.51599393,0.00015904,2]
[421851262,1778225444000,-677.51599393,0.00016007,2]
[421851247,1778225444000,-677.51599393,0.00015895,2]
[421851230,1778225444000,-200.0,0.00015647,2]
[421851253,1778225444000,-677.51599393,0.00015911,2]
[421851227,1778225444000,-593.11195961,0.00015578,2]
[421851226,1778225444000,-219.916363,0.00015565,2]
[421851228,1778225444000,-620.73337955,0.00015646,2]
[421851240,1778225444000,-2000.0,0.00015861,2]
[421851245,1778225444000,-677.51599393,0.00015877,2]
[421851241,1778225444000,-677.51599393,0.00015862,2]
[421851235,1778225444000,-350.0,0.00015739,2]
[421851244,1778225444000,-677.51599393,0.00015873,2]
[421851236,1778225444000,-2500.0,0.00015834,2]
[421851243,1778225444000,-677.51599393,0.0001587,2]
[421851237,1778225444000,-677.51599393,0.00015838,2]
[421851254,1778225444000,-677.51599393,0.00015952,2]
[421851239,1778225444000,-677.51599393,0.00015852,2]
[421851255,1778225444000,-350.0,0.00015957,2]
[421851248,1778225444000,-677.51599393,0.00015895,2]
[421851252,1778225444000,-677.51599393,0.0001591,2]
[421851246,1778225444000,-677.51599393,0.00015879,2]
[421851250,1778225444000,-677.51599393,0.00015908,2]
[421851238,1778225444000,-677.51599393,0.00015841,2]
[421851242,1778225444000,-677.51599393,0.00015866,2]
[421851251,1778225444000,-677.51599393,0.00015909,2]
[421851315,1778225445000,-151.0,0.00016438,2]
[421851309,1778225445000,-500.0,0.00016438,2]
[421851308,1778225445000,-500.43191244,0.00016438,2]
[421851304,1778225445000,-165.70740225,0.00016438,2]
[421851306,1778225445000,-500.82435689,0.00016438,2]
[421851317,1778225445000,-151.0,0.00016438,2]
[421851311,1778225445000,-500.0,0.00016438,2]
[421851312,1778225445000,-151.0,0.00016438,2]
[421851313,1778225445000,-151.0,0.00016438,2]
[421851319,1778225445000,-500.0,0.00016438,2]
[421851320,1778225445000,-204.531744,0.00016438,2]
[421851324,1778225445000,-313.80524585,0.00016438,2]
[421851310,1778225445000,-500.0,0.00016438,2]
[421851314,1778225445000,-151.0,0.00016438,2]
[421851316,1778225445000,-151.0,0.00016438,2]
[421851323,1778225445000,-500.0,0.00016438,2]
[421851322,1778225445000,-500.0,0.00016438,2]
[421851325,1778225445000,-504.43834535,0.00016438,2]
[421851321,1778225445000,-500.0,0.00016438,2]
[421851327,1778225445000,-500.0,0.00016438,2]
[421851328,1778225445000,-191.77323135,0.00016438,2]
[421851307,1778225445000,-150.44361294,0.00016438,2]
[421851318,1778225445000,-151.0,0.00016438,2]
[421851305,1778225445000,-165.5192169,0.00016438,2]
[421851287,1778225445000,-150.0,0.00016113,2]
[421851303,1778225445000,-163.41,0.00016438,2]
[421851326,1778225445000,-500.0,0.00016438,2]
[421851281,1778225445000,-677.51599393,0.00016093,2]
[421851286,1778225445000,-150.0,0.00016113,2]
[421851280,1778225445000,-677.51599393,0.00016077,2]
[421851283,1778225445000,-677.51599393,0.00016105,2]
[421851285,1778225445000,-150.0,0.00016113,2]
[421851279,1778225445000,-677.51599393,0.00016061,2]
[421851284,1778225445000,-677.51599393,0.0001611,2]
[421851282,1778225445000,-677.51599393,0.00016097,2]
[421851293,1778225445000,-150.0,0.00016137,2]
[421851294,1778225445000,-166.67,0.00016145,2]
[421851290,1778225445000,-150.0,0.00016113,2]
[421851297,1778225445000,-354.14992006,0.00016212,2]
[421851295,1778225445000,-200.0,0.00016195,2]
[421851291,1778225445000,-276.0,0.00016113,2]
[421851292,1778225445000,-677.51599393,0.00016124,2]
[421851296,1778225445000,-217.15233878,0.00016195,2]
[421851299,1778225445000,-593.11195961,0.00016276,2]
[421851298,1778225445000,-3500.0,0.0001626,2]
[421851289,1778225445000,-150.0,0.00016113,2]
[421851288,1778225445000,-150.0,0.00016113,2]
[421851301,1778225445000,-1182.06033118,0.00016382,2]
[421851300,1778225445000,-932.0,0.00016277,2]
[421851302,1778225445000,-661.5,0.00016438,2]
[421851329,1778225445000,-500.0,0.00016438,2]
[421851371,1778225445000,-784.65,0.000178,2]
[421851332,1778225445000,-2631.39,0.00016474,2]
[421851352,1778225445000,-4609.0,0.00017013,2]
[421851362,1778225445000,-925.0,0.00017157,2]
[421851361,1778225445000,-615.454,0.00017157,2]
[421851363,1778225445000,-150.0,0.00017228,2]
[421851364,1778225445000,-2000.0,0.00017303,2]
[421851368,1778225445000,-993.78348246,0.00017534,2]
[421851367,1778225445000,-399.67636483,0.00017534,2]
[421851365,1778225445000,-1500.0,0.00017534,2]
[421851370,1778225445000,-150.0,0.00017751,2]
[421851366,1778225445000,-500.0,0.00017534,2]
[421851360,1778225445000,-864.019,0.00017157,2]
[421851372,1778225445000,-1236.65563853,0.0001789,2]
[421851374,1778225445000,-1043.45173831,0.00018,2]
[421851373,1778225445000,-155.0,0.00017945,2]
[421851377,1778225445000,-489.25874705,0.00018,2]
[421851375,1778225445000,-1204.97640528,0.00018,2]
[421851378,1778225445000,-243.0,0.0001805,2]
[421851376,1778225445000,-350.0,0.00018,2]
[421851379,1778225445000,-495.0,0.0001805,2]
[421851380,1778225445000,-153.0,0.0001805,2]
[421851381,1778225445000,-405.0,0.0001805,2]
[421851334,1778225445000,-869.83,0.000167,2]
[421851382,1778225445000,-2000.0,0.00018082,2]
[421851356,1778225445000,-150.0,0.00017157,2]
[421851369,1778225445000,-2067.38361914,0.00017691,2]
[421851355,1778225445000,-150.0,0.00017157,2]
[421851348,1778225445000,-501.49028968,0.00016986,2]
[421851331,1778225445000,-155.0,0.00016449,2]
[421851335,1778225445000,-412.66,0.000167,2]
[421851333,1778225445000,-841.0,0.00016607,2]
[421851336,1778225445000,-199.68,0.000167,2]
[421851340,1778225445000,-1697.46934131,0.00016808,2]
[421851337,1778225445000,-474.56,0.00016742,2]
[421851346,1778225445000,-502.41572104,0.00016986,2]
[421851347,1778225445000,-1000.0,0.00016986,2]
[421851338,1778225445000,-202.7575358,0.00016743,2]
[421851341,1778225445000,-1000.0,0.00016986,2]
[421851339,1778225445000,-225.18697531,0.00016743,2]
[421851330,1778225445000,-503.28312204,0.00016438,2]
[421851359,1778225445000,-1268.0,0.00017157,2]
[421851342,1778225445000,-711.6142385,0.00016986,2]
[421851343,1778225445000,-711.982935,0.00016986,2]
[421851354,1778225445000,-2000.0,0.00017115,2]
[421851350,1778225445000,-503.23430575,0.00016986,2]
[421851358,1778225445000,-150.0,0.00017157,2]
[421851357,1778225445000,-150.0,0.00017157,2]
[421851349,1778225445000,-1000.0,0.00016986,2]
[421851353,1778225445000,-501.10276449,0.00017115,2]
[421851351,1778225445000,-1000.0,0.00016986,2]
[421851345,1778225445000,-502.65385745,0.00016986,2]
[421851411,1778225446000,-250.96187286,0.00019178,2]
[421851415,1778225446000,-150.0,0.000197,7]
[421851408,1778225446000,-500.0,0.00019178,2]
[421851410,1778225446000,-571.3861099,0.00019178,2]
[421851414,1778225446000,-156.42,0.00019613,2]
[421851407,1778225446000,-500.0,0.00019178,2]
[421851417,1778225446000,-2000.0,0.00019916,2]
[421851413,1778225446000,-202.4535,0.00019526,2]
[421851412,1778225446000,-691.0,0.00019247,5]
[421851416,1778225446000,-152.0,0.00019882,3]
[421851418,1778225446000,-500.0,0.00019999,2]
[421851422,1778225446000,-276.96710274,0.00019999,2]
[421851420,1778225446000,-198.49519623,0.00019999,2]
[421851427,1778225446000,-150.0,0.0002,2]
[421851430,1778225446000,-13071.02838473,0.0002,2]
[421851425,1778225446000,-4835.63383821,0.0002,3]
[421851428,1778225446000,-7000.02687131,0.0002,2]
[421851424,1778225446000,-200.0,0.0002,2]
[421851419,1778225446000,-500.0,0.00019999,2]
[421851421,1778225446000,-475.10454763,0.00019999,2]
[421851423,1778225446000,-500.0,0.00019999,2]
[421851431,1778225446000,-3603.73512726,0.0002,2]
[421851429,1778225446000,-10675.46459012,0.0002,2]
[421851409,1778225446000,-500.0,0.00019178,2]
[421851383,1778225446000,-489.25874705,0.000182,2]
[421851402,1778225446000,-405.0,0.0001905,2]
[421851384,1778225446000,-500.0,0.00018385,2]
[421851385,1778225446000,-489.25874705,0.000184,2]
[421851387,1778225446000,-474.56,0.00018417,2]
[421851392,1778225446000,-489.25874705,0.000187,2]
[421851389,1778225446000,-489.25874705,0.000185,2]
[421851388,1778225446000,-525.03,0.000185,2]
[421851386,1778225446000,-661.5,0.0001841,2]
[421851391,1778225446000,-1136.33,0.000187,2]
[421851394,1778225446000,-904.8415147,0.00018703,2]
[421851390,1778225446000,-500.0,0.0001863,2]
[421851399,1778225446000,-243.0,0.0001905,2]
[421851393,1778225446000,-412.66,0.000187,2]
[421851403,1778225446000,-500.0,0.00019178,2]
[421851426,1778225446000,-151.0,0.0002,2]
[421851405,1778225446000,-500.0,0.00019178,2]
[421851398,1778225446000,-150.0,0.00019,2]
[421851400,1778225446000,-495.0,0.0001905,2]
[421851401,1778225446000,-153.0,0.0001905,2]
[421851396,1778225446000,-338.625981,0.00019,2]
[421851406,1778225446000,-500.0,0.00019178,2]
[421851395,1778225446000,-4770.0,0.00018714,2]
[421851404,1778225446000,-500.0,0.00019178,2]
[421851397,1778225446000,-1663.73647626,0.00019,2]
[421851432,1778225446000,-400.0,0.0002,2]
[421851480,1778225446000,-1536.0,0.00020933,2]
[421851437,1778225446000,-243.0,0.0002005,2]
[421851474,1778225446000,-1536.0,0.00020933,2]
[421851465,1778225446000,-155.93137852,0.00020933,2]
[421851472,1778225446000,-1536.0,0.00020933,2]
[421851460,1778225446000,-154.0,0.00020933,2]
[421851479,1778225446000,-1536.0,0.00020933,2]
[421851488,1778225446000,-151.0,0.00020933,2]
[421851487,1778225446000,-1536.0,0.00020933,2]
[421851483,1778225446000,-151.0,0.00020933,2]
[421851484,1778225446000,-1536.0,0.00020933,2]
[421851485,1778225446000,-1536.0,0.00020933,2]
[421851469,1778225446000,-1536.0,0.00020933,2]
[421851481,1778225446000,-151.0,0.00020933,2]
[421851482,1778225446000,-1536.0,0.00020933,2]
[421851489,1778225446000,-1536.0,0.00020933,2]
[421851493,1778225446000,-1536.0,0.00020933,2]
[421851494,1778225446000,-151.0,0.00020933,2]
[421851492,1778225446000,-151.0,0.00020933,2]
[421851490,1778225446000,-151.0,0.00020933,2]
[421851496,1778225446000,-151.0,0.00020933,2]
[421851495,1778225446000,-1536.0,0.00020933,2]
[421851491,1778225446000,-1536.0,0.00020933,2]
[421851433,1778225446000,-160.01506487,0.0002,2]
[421851486,1778225446000,-151.0,0.00020933,2]
[421851477,1778225446000,-151.0,0.00020933,2]
[421851498,1778225446000,-151.0,0.00020933,2]
[421851467,1778225446000,-1536.0,0.00020933,2]
[421851435,1778225446000,-160.01506487,0.0002,2]
[421851443,1778225446000,-150.0,0.00020157,2]
[421851444,1778225446000,-150.0,0.00020157,2]
[421851434,1778225446000,-160.01506487,0.0002,2]
[421851436,1778225446000,-151.10015143,0.0002,20]
[421851438,1778225446000,-495.0,0.0002005,2]
[421851462,1778225446000,-154.0,0.00020933,2]
[421851439,1778225446000,-153.0,0.0002005,2]
[421851441,1778225446000,-474.56,0.00020091,2]
[421851440,1778225446000,-405.0,0.0002005,2]
[421851450,1778225446000,-1300.0,0.00020356,7]
[421851442,1778225446000,-2067.38361914,0.00020133,2]
[421851447,1778225446000,-150.0,0.000202,10]
[421851445,1778225446000,-745.239,0.00020157,2]
[421851449,1778225446000,-500.0,0.00020356,7]
[421851448,1778225446000,-700.0,0.00020356,7]
[421851451,1778225446000,-661.5,0.00020381,2]
[421851452,1778225446000,-21775.08,0.00020548,2]
[421851453,1778225446000,-412.66,0.000206,2]
[421851455,1778225446000,-151.0,0.00020933,2]
[421851457,1778225446000,-151.0,0.00020933,2]
[421851454,1778225446000,-151.0,0.00020933,2]
[421851446,1778225446000,-925.0,0.00020157,2]
[421851456,1778225446000,-151.0,0.00020933,2]
[421851543,1778225447000,-500.0,0.00021,7]
[421851526,1778225447000,-152.0,0.00020933,2]
[421851522,1778225447000,-152.0,0.00020933,2]
[421851531,1778225447000,-152.0,0.00020933,2]
[421851525,1778225447000,-152.0,0.00020933,2]
[421851527,1778225447000,-152.0,0.00020933,2]
[421851524,1778225447000,-152.0,0.00020933,2]
[421851523,1778225447000,-152.0,0.00020933,2]
[421851532,1778225447000,-152.0,0.00020933,2]
[421851534,1778225447000,-152.0,0.00020933,2]
[421851551,1778225447000,-300.0,0.0002143,2]
[421851544,1778225447000,-598.15,0.00021,7]
[421851536,1778225447000,-152.0,0.00020933,2]
[421851539,1778225447000,-257.13086667,0.00020933,2]
[421851537,1778225447000,-152.0,0.00020933,2]
[421851533,1778225447000,-152.0,0.00020933,2]
[421851535,1778225447000,-152.0,0.00020933,2]
[421851538,1778225447000,-152.0,0.00020933,2]
[421851541,1778225447000,-152.0,0.00020943,4]
[421851545,1778225447000,-243.0,0.0002105,2]
[421851530,1778225447000,-152.0,0.00020933,2]
[421851542,1778225447000,-159.0,0.00021,5]
[421851528,1778225447000,-152.0,0.00020933,2]
[421851512,1778225447000,-1536.0,0.00020933,2]
[421851521,1778225447000,-997.66355495,0.00020933,2]
[421851547,1778225447000,-153.0,0.0002105,2]
[421851500,1778225447000,-1536.0,0.00020933,2]
[421851502,1778225447000,-1536.0,0.00020933,2]
[421851504,1778225447000,-1536.0,0.00020933,2]
[421851501,1778225447000,-151.0,0.00020933,2]
[421851503,1778225447000,-293.78355071,0.00020933,2]
[421851505,1778225447000,-1536.0,0.00020933,2]
[421851509,1778225447000,-1536.0,0.00020933,2]
[421851508,1778225447000,-1536.0,0.00020933,2]
[421851510,1778225447000,-1536.0,0.00020933,2]
[421851507,1778225447000,-1536.0,0.00020933,2]
[421851506,1778225447000,-1536.0,0.00020933,2]
[421851513,1778225447000,-1536.0,0.00020933,2]
[421851514,1778225447000,-1536.0,0.00020933,2]
[421851515,1778225447000,-1536.0,0.00020933,2]
[421851511,1778225447000,-1536.0,0.00020933,2]
[421851517,1778225447000,-1536.0,0.00020933,2]
[421851516,1778225447000,-1536.0,0.00020933,2]
[421851520,1778225447000,-1536.0,0.00020933,2]
[421851518,1778225447000,-1536.0,0.00020933,2]
[421851519,1778225447000,-1536.0,0.00020933,2]
[421851529,1778225447000,-152.0,0.00020933,2]
[421851550,1778225447000,-300.0,0.0002143,2]
[421851540,1778225447000,-155.0,0.00020936,2]
[421851548,1778225447000,-405.0,0.0002105,2]
[421851574,1778225447000,-341.0,0.00022,2]
[421851572,1778225447000,-2006.31960288,0.00022,2]
[421851585,1778225447000,-1627.65,0.00022466,2]
[421851579,1778225447000,-153.0,0.0002205,2]
[421851587,1778225447000,-1000.0,0.00022521,2]
[421851588,1778225447000,-904.8415147,0.00022543,2]
[421851578,1778225447000,-495.0,0.0002205,2]
[421851586,1778225447000,-502.27455724,0.00022521,2]
[421851580,1778225447000,-405.0,0.0002205,2]
[421851582,1778225447000,-1401.14,0.00022137,2]
[421851573,1778225447000,-162.0,0.00022,2]
[421851581,1778225447000,-243.31593528,0.0002211,2]
[421851589,1778225447000,-700.0,0.00022548,7]
[421851593,1778225447000,-305.73,0.000226,14]
[421851590,1778225447000,-1300.0,0.00022548,7]
[421851591,1778225447000,-500.0,0.00022548,7]
[421851594,1778225447000,-412.66,0.000226,7]
[421851592,1778225447000,-2067.38361914,0.00022574,2]
[421851595,1778225447000,-999.36,0.00022691,2]
[421851597,1778225447000,-530.02045411,0.0002271,2]
[421851596,1778225447000,-2631.39,0.00022691,2]
[421851549,1778225447000,-300.0,0.0002143,2]
[421851584,1778225447000,-661.5,0.00022353,2]
[421851577,1778225447000,-243.0,0.0002205,2]
[421851583,1778225447000,-341.0,0.00022192,7]
[421851575,1778225447000,-1851.27329923,0.00022,2]
[421851546,1778225447000,-495.0,0.0002105,2]
[421851571,1778225447000,-1727.16516291,0.00022,2]
[421851555,1778225447000,-300.0,0.0002143,2]
[421851553,1778225447000,-300.0,0.0002143,2]
[421851552,1778225447000,-300.0,0.0002143,2]
[421851554,1778225447000,-300.0,0.0002143,2]
[421851556,1778225447000,-300.0,0.0002143,2]
[421851560,1778225447000,-1300.0,0.00021452,7]
[421851558,1778225447000,-213.0,0.0002143,2]
[421851559,1778225447000,-700.0,0.00021452,7]
[421851557,1778225447000,-300.0,0.0002143,2]
[421851568,1778225447000,-160.0,0.00022,2]
[421851561,1778225447000,-5000.0,0.00021918,2]
[421851562,1778225447000,-256.682543,0.00021918,2]
[421851563,1778225447000,-1020.7,0.00021918,5]
[421851565,1778225447000,-500.0,0.00021973,2]
[421851566,1778225447000,-500.0,0.00021973,2]
[421851564,1778225447000,-151.0,0.00021918,2]
[421851576,1778225447000,-152.0,0.00022004,5]
[421851569,1778225447000,-151.0,0.00022,2]
[421851570,1778225447000,-160.0,0.00022,15]
[421851567,1778225447000,-22237.08543096,0.00022,4]
[421851631,1778225448000,-412.66,0.000247,7]
[421851629,1778225448000,-180.49,0.00024658,2]
[421851632,1778225448000,-700.0,0.0002474,7]
[421851638,1778225448000,-7211.57320234,0.00025,2]
[421851634,1778225448000,-1300.0,0.0002474,7]
[421851633,1778225448000,-500.0,0.0002474,7]
[421851637,1778225448000,-150.96922064,0.0002493,2]
[421851635,1778225448000,-5529.0,0.000248,3]
[421851636,1778225448000,-216.0,0.0002493,30]
[421851627,1778225448000,-167.88359487,0.0002455,15]
[421851645,1778225448000,-6678.60195798,0.00025,2]
[421851630,1778225448000,-1000.0,0.00024658,2]
[421851639,1778225448000,-2225.98582015,0.00025,2]
[421851657,1778225448000,-1300.0,0.00025836,7]
[421851640,1778225448000,-169.26214873,0.00025,2]
[421851647,1778225448000,-214.68143985,0.00025,3]
[421851641,1778225448000,-4846.47922267,0.00025,2]
[421851648,1778225448000,-2067.38361914,0.00025016,2]
[421851643,1778225448000,-150.0,0.00025,2]
[421851649,1778225448000,-184.78453712,0.0002517,2]
[421851644,1778225448000,-6482.9741656,0.00025,7]
[421851646,1778225448000,-160.0,0.00025,25]
[421851658,1778225448000,-160.0,0.00026,28]
[421851650,1778225448000,-152.0,0.00025186,8]
[421851652,1778225448000,-5529.0,0.000253,5]
[421851626,1778225448000,-661.5,0.00024324,2]
[421851642,1778225448000,-150.44479217,0.00025,2]
[421851628,1778225448000,-150.0,0.00024658,2]
[421851610,1778225448000,-150.0,0.00023157,2]
[421851621,1778225448000,-214.68143985,0.00024,7]
[421851659,1778225448000,-150.0,0.00026027,2]
[421851598,1778225448000,-2000.0,0.00022717,2]
[421851600,1778225448000,-207.99170503,0.00023,3]
[421851599,1778225448000,-1011.13040984,0.00023,2]
[421851602,1778225448000,-341.0,0.00023014,7]
[421851611,1778225448000,-561.419,0.00023157,2]
[421851612,1778225448000,-201.66,0.00023288,4]
[421851613,1778225448000,-7370.45576561,0.000235,30]
[421851607,1778225448000,-152.0,0.00023064,6]
[421851603,1778225448000,-249.5468363,0.0002305,2]
[421851604,1778225448000,-510.44256177,0.0002305,2]
[421851601,1778225448000,-160.0,0.00023,19]
[421851620,1778225448000,-160.0,0.00024,22]
[421851605,1778225448000,-155.43477557,0.0002305,2]
[421851608,1778225448000,-500.0,0.00023068,2]
[421851606,1778225448000,-420.56045727,0.0002305,2]
[421851618,1778225448000,-150.0,0.00023671,2]
[421851623,1778225448000,-347.0,0.00024164,7]
[421851619,1778225448000,-278.0,0.00023671,2]
[421851617,1778225448000,-150.0,0.00023671,2]
[421851624,1778225448000,-37409.0,0.000242,2]
[421851616,1778225448000,-150.0,0.00023671,2]
[421851622,1778225448000,-152.0,0.00024125,7]
[421851614,1778225448000,-700.0,0.00023644,7]
[421851625,1778225448000,-1151.09077381,0.0002421,2]
[421851615,1778225448000,-1300.0,0.00023644,7]
[421851609,1778225448000,-523.09322645,0.0002314,2]
[421851651,1778225448000,-250.0,0.00025205,2]
[421851703,1778225448000,-206.677729,0.00027397,2]
[421851660,1778225448000,-277.0,0.00026027,2]
[421851689,1778225448000,-341.0,0.00027386,7]
[421851685,1778225448000,-2003.0663,0.00027148,2]
[421851690,1778225448000,-4162.14190344,0.0002739,2]
[421851686,1778225448000,-412.66,0.000272,7]
[421851695,1778225448000,-200.0,0.00027397,2]
[421851693,1778225448000,-268.730736,0.00027397,2]
[421851692,1778225448000,-151.0,0.00027397,2]
[421851687,1778225448000,-168.88,0.00027217,2]
[421851698,1778225448000,-151.0,0.00027397,2]
[421851700,1778225448000,-151.0,0.00027397,2]